bitfinex/quotes_BTCUSD_20250414
["timestamp","ask_amount","ask_price","bid_price","bid_amount"]
[1744634507021,1.34536837,85104.0,85103.0,0.0008444]
[1744634507172,1.48953435,85104.0,85103.0,0.0008444]
[1744634507641,1.07303435,85104.0,85103.0,0.0008444]
[1744634507850,1.07303435,85104.0,85103.0,4e-07]
[1744634508003,1.07203435,85104.0,85103.0,4e-07]
[1744634508201,0.58955485,85101.0,85100.0,1e-06]
[1744634508480,0.68456585,85097.0,85096.0,4e-07]
[1744634508627,0.94244739,85097.0,85096.0,4e-07]
[1744634508836,0.96437724,85097.0,85096.0,4e-07]
[1744634509517,1.08510572,85097.0,85096.0,4e-07]
[1744634509725,1.0960832,85097.0,85096.0,4e-07]
[1744634509905,0.97535472,85097.0,85096.0,4e-07]
[1744634510106,0.97935472,85097.0,85096.0,4e-07]
[1744634515579,0.97939472,85097.0,85096.0,4e-07]
[1744634516820,0.235056,85086.0,85085.0,0.0008446]
[1744634517149,0.2715267,85086.0,85085.0,0.0008446]
[1744634517452,0.28250418,85086.0,85085.0,0.0008446]
[1744634518153,0.28550418,85086.0,85085.0,0.0008446]
[1744634518952,0.28650418,85086.0,85085.0,0.0008446]
[1744634519484,0.42394418,85086.0,85085.0,0.0008446]
[1744634520947,0.05144818,85086.0,85085.0,0.0008446]
[1744634521093,0.01497748,85086.0,85085.0,0.2359036]
[1744634521496,0.01497748,85086.0,85085.0,0.0008446]
[1744634521897,0.01397748,85086.0,85085.0,0.2359036]
[1744634522076,0.003,85086.0,85085.0,0.2359036]
[1744634522277,0.004,85086.0,85085.0,0.2359036]
[1744634522687,0.004,85086.0,85085.0,0.0008446]
[1744634522888,0.004,85086.0,85085.0,0.2359036]
[1744634523095,0.001,85086.0,85085.0,0.2359036]
[1744634523308,0.003,85086.0,85085.0,0.2359036]
[1744634524157,0.003,85086.0,85085.0,0.0008446]
[1744634525373,0.238056,85086.0,85085.0,0.0008446]
[1744634526641,0.009155,85085.0,85083.0,0.246817]
[1744634527414,0.228861,85086.0,85083.0,0.246817]
[1744634527853,0.001,85085.0,85084.0,0.235061]
[1744634527993,0.002,85085.0,85083.0,0.246817]
[1744634528192,0.001,85085.0,85083.0,0.246817]
[1744634528709,0.001,85085.0,85084.0,0.235061]
[1744634529420,0.236059,85085.0,85083.0,0.246817]
[1744634529625,0.235067,85082.0,85081.0,0.0008448]
[1744634529820,0.246814,85084.0,85082.0,0.235066]
[1744634530031,0.011753,85084.0,85082.0,0.12084154]
[1744634530226,0.235064,85083.0,85081.0,0.0008448]
[1744634530408,0.235067,85082.0,85081.0,0.12168634]
[1744634531478,0.24605374,85082.0,85081.0,0.12168634]
[1744634531625,0.24615374,85082.0,85081.0,0.12168634]
[1744634531830,0.01108674,85082.0,85081.0,0.12168634]
[1744634532612,0.24615374,85082.0,85081.0,0.0008448]
[1744634534853,0.26069459,85082.0,85081.0,0.0008448]
[1744634534983,0.36052936,85082.0,85081.0,0.0008448]
[1744634535207,0.26069459,85082.0,85081.0,0.0008448]
[1744634535410,0.2826818,85082.0,85081.0,0.0008448]
[1744634535731,1.25762334,85082.0,85081.0,8e-07]
[1744634535930,0.235081,85077.0,85076.0,4e-07]
[1744634536098,0.63723485,85072.0,85071.0,4e-07]
[1744634536293,0.94111639,85072.0,85071.0,4e-07]
[1744634536903,0.97409034,85072.0,85071.0,4e-07]
[1744634537233,0.8542488,85072.0,85071.0,4e-07]
[1744634538188,0.97497728,85072.0,85071.0,4e-07]
[1744634538384,0.35454085,85069.0,85068.0,8e-07]
[1744634538588,0.47538239,85069.0,85068.0,8e-07]
[1744634539107,0.4973696,85069.0,85068.0,8e-07]
[1744634539278,0.56657505,85069.0,85068.0,8e-07]
[1744634539441,0.4973696,85069.0,85068.0,8e-07]
[1744634539848,0.51235634,85069.0,85068.0,8e-07]
[1744634540070,0.51335634,85069.0,85068.0,8e-07]
[1744634540441,0.3925148,85069.0,85068.0,8e-07]
[1744634540846,0.3926148,85069.0,85068.0,8e-07]
[1744634541789,0.51334328,85069.0,85068.0,8e-07]
[1744634541989,1.09858482,85069.0,85068.0,8e-07]
[1744634542624,0.97785634,85069.0,85068.0,8e-07]
[1744634542790,1.02785634,85069.0,85068.0,8e-07]
[1744634543600,1.26295934,85069.0,85068.0,8e-07]
[1744634546327,1.26295934,85069.0,85068.0,0.0176338]
[1744634546952,1.21295934,85069.0,85068.0,0.0176338]
[1744634547930,1.33368782,85069.0,85068.0,0.0176338]
[1744634548833,1.21295934,85069.0,85068.0,0.0176338]
[1744634550674,1.21295934,85069.0,85068.0,8e-07]
[1744634556949,1.2019726,85069.0,85068.0,8e-07]
[1744634557146,1.21291923,85069.0,85068.0,8e-07]
[1744634564070,1.16501923,85069.0,85068.0,8e-07]
[1744634564943,0.58966285,85062.0,85061.0,0.0008448]
[1744634565144,1.12700439,85062.0,85061.0,0.0008448]
[1744634565562,1.2865516,85062.0,85061.0,0.0008448]
[1744634566137,1.30049823,85062.0,85061.0,0.0008448]
[1744634566338,1.37372029,85062.0,85061.0,0.0008448]
[1744634566703,1.30049823,85062.0,85061.0,0.0008448]
[1744634566851,1.30449823,85062.0,85061.0,0.0008448]
[1744634568299,1.31606086,85062.0,85061.0,0.0008448]
[1744634570505,1.3490875,85062.0,85061.0,0.0008448]
[1744634572170,1.22824596,85062.0,85061.0,0.0008448]
[1744634572556,1.19521932,85062.0,85061.0,0.0008448]
[1744634572756,1.25589667,85062.0,85061.0,0.0008448]
[1744634572943,1.22825508,85062.0,85061.0,0.0008448]
[1744634573081,1.19521932,85062.0,85061.0,0.0008448]
[1744634573419,1.17323211,85062.0,85061.0,0.0008448]
[1744634573818,1.16228548,85062.0,85061.0,0.0008448]
[1744634575608,1.28301396,85062.0,85061.0,0.0008448]
[1744634576037,1.16228548,85062.0,85061.0,0.0008448]
[1744634582220,1.17329527,85062.0,85061.0,0.0008448]
[1744634582597,1.29413681,85062.0,85061.0,0.0008448]
[1744634582774,1.32717009,85062.0,85061.0,0.0008448]
[1744634584575,1.32727009,85062.0,85061.0,0.0008448]
[1744634584988,1.32727009,85062.0,85061.0,8e-07]
[1744634585892,1.3132603,85062.0,85061.0,8e-07]
[1744634586087,1.3092603,85062.0,85061.0,8e-07]
[1744634586292,1.3132603,85062.0,85061.0,8e-07]
[1744634586520,1.3192603,85062.0,85061.0,8e-07]
[1744634587271,0.24968785,85053.0,85050.0,0.0008452]
[1744634588119,0.26069544,85053.0,85050.0,0.0008452]
[1744634588463,0.26269544,85053.0,85050.0,0.0008452]
[1744634588980,0.38353698,85053.0,85050.0,0.0008452]
[1744634589624,0.38553698,85053.0,85050.0,0.0008452]
[1744634590835,0.52253698,85053.0,85050.0,0.0008452]
[1744634591055,0.64326546,85053.0,85050.0,0.0008452]
[1744634591639,0.40169544,85053.0,85050.0,0.0008452]
[1744634591847,0.81819544,85053.0,85050.0,0.0008452]
[1744634594196,1.27903698,85053.0,85050.0,0.0008452]
[1744634594990,1.27703698,85053.0,85050.0,0.0008452]
[1744634595394,1.27903698,85053.0,85050.0,0.0008452]
[1744634595617,1.34102012,85053.0,85050.0,0.0008452]
[1744634595771,1.27903698,85053.0,85050.0,0.0008452]
[1744634596188,1.15819544,85053.0,85050.0,0.0008452]
[1744634596890,1.16119544,85053.0,85050.0,0.0008452]
[1744634601478,1.16119544,85053.0,85049.0,0.000844]
[1744634601479,0.25400605,85050.0,85049.0,0.000844]
[1744634603019,0.25700605,85050.0,85049.0,0.000844]
[1744634603649,0.67550605,85050.0,85049.0,0.000844]
[1744634603792,0.68423836,85050.0,85049.0,0.000844]
[1744634604346,0.69524595,85050.0,85049.0,0.000844]
[1744634607718,0.68423836,85050.0,85049.0,0.000844]
[1744634609433,0.58970485,85047.0,85045.0,0.0008446]
[1744634610052,0.60071599,85047.0,85045.0,0.0008446]
[1744634610460,0.60271599,85047.0,85045.0,0.0008446]
[1744634610686,0.60471599,85047.0,85045.0,0.0008446]
[1744634611922,0.60481599,85047.0,85045.0,0.0008446]
[1744634613126,0.74021599,85047.0,85045.0,0.0008446]
[1744634613524,0.60481599,85047.0,85045.0,0.0008446]
[1744634613686,0.74021599,85047.0,85045.0,0.0008446]
[1744634614064,0.60481599,85047.0,85045.0,0.0008446]
[1744634614372,0.74021599,85047.0,85045.0,0.0008446]
[1744634614583,0.577787,85046.0,85045.0,0.0008446]
[1744634615584,0.577787,85046.0,85045.0,0.0480446]
[1744634615830,0.713187,85046.0,85045.0,0.0480446]
[1744634616288,0.715187,85046.0,85045.0,0.0480446]
[1744634616714,0.717187,85046.0,85045.0,0.0480446]
[1744634617328,0.581787,85046.0,85045.0,0.0480446]
[1744634617518,0.698827,85046.0,85045.0,0.0480446]
[1744634617721,0.698827,85046.0,85045.0,0.0976446]
[1744634619122,0.696827,85046.0,85045.0,0.0976446]
[1744634619320,0.697827,85046.0,85045.0,0.0976446]
[1744634619520,0.695827,85046.0,85045.0,0.0976446]
[1744634619725,0.696827,85046.0,85045.0,0.0976446]
[1744634620344,0.561427,85046.0,85045.0,0.0976446]
[1744634620828,0.695827,85046.0,85045.0,0.0976446]
[1744634621173,0.561427,85046.0,85045.0,0.0976446]
[1744634621374,0.695827,85046.0,85045.0,0.0976446]
[1744634621796,0.696827,85046.0,85045.0,0.0976446]
[1744634624179,0.561427,85046.0,85045.0,0.0976446]
[1744634624419,0.696827,85046.0,85045.0,0.0976446]
[1744634624826,0.696827,85046.0,85045.0,0.0008446]
[1744634625049,0.71136785,85046.0,85045.0,0.0008446]
[1744634630590,0.71036785,85046.0,85045.0,0.0008446]
[1744634630770,0.71236785,85046.0,85045.0,0.0008446]
[1744634631272,0.71136785,85046.0,85045.0,0.0008446]
[1744634631473,0.71336785,85046.0,85045.0,0.0008446]
[1744634635379,0.57796785,85046.0,85045.0,0.0008446]
[1744634635590,0.698827,85046.0,85045.0,0.0933446]
[1744634640726,0.004,85046.0,85045.0,0.44935514]
[1744634641244,0.24682534,85069.0,85045.0,0.44935514]
[1744634641245,0.0001,85069.0,85066.0,0.011755]
[1744634641450,0.0001,85069.0,85068.0,0.281706]
[1744634641646,0.0001,85069.0,85068.0,0.40254754]
[1744634642182,0.0004228,85084.0,85081.0,0.23507]
[1744634642404,0.0004228,85084.0,85081.0,0.35591154]
[1744634642605,0.0004228,85084.0,85081.0,0.40211154]
[1744634643192,0.0004228,85084.0,85081.0,0.44791154]
[1744634645100,0.0004228,85084.0,85081.0,0.44891154]
[1744634645562,0.0004228,85084.0,85081.0,0.45091154]
[1744634645789,1.24e-06,85082.0,85081.0,0.45091154]
[1744634646439,1.24e-06,85082.0,85081.0,0.44791154]
[1744634646667,1.24e-06,85082.0,85081.0,0.45191154]
[1744634648022,1.24e-06,85082.0,85081.0,0.44891154]
[1744634648575,1.24e-06,85082.0,85081.0,0.44791154]
[1744634648758,1.24e-06,85082.0,85081.0,0.44991154]
[1744634648971,1.24e-06,85082.0,85081.0,0.45491154]
[1744634649184,1.24e-06,85082.0,85081.0,0.45291154]
[1744634649432,1.24e-06,85082.0,85081.0,0.45591154]
[1744634649908,0.0004228,85084.0,85083.0,0.284864]
[1744634650158,0.0004228,85084.0,85083.0,0.40570554]
[1744634650430,8e-07,85084.0,85083.0,0.40570554]
[1744634650852,8e-07,85084.0,85083.0,0.45090554]
[1744634652122,8e-07,85084.0,85083.0,0.45690554]
[1744634652583,8e-07,85084.0,85083.0,0.46190554]
[1744634653499,8e-07,85084.0,85083.0,0.88060554]
[1744634654009,8e-07,85084.0,85083.0,1.01628554]
[1744634654359,8e-07,85084.0,85083.0,0.88060554]
[1744634654672,8e-07,85084.0,85083.0,1.01628554]
[1744634661358,8e-07,85084.0,85083.0,0.88060554]
[1744634661909,8e-07,85084.0,85083.0,1.01628554]
[1744634662468,8e-07,85084.0,85083.0,1.01624554]
[1744634665036,0.2350618,85084.0,85083.0,0.13184154]
[1744634665256,0.2350618,85084.0,85083.0,0.011]
[1744634665860,0.2350618,85084.0,85083.0,0.005]
[1744634666067,0.2703267,85084.0,85083.0,0.008]
[1744634666482,0.2703267,85084.0,85083.0,0.005]
[1744634666680,0.2703267,85084.0,85083.0,0.006]
[1744634666860,0.2703267,85084.0,85083.0,0.001]
[1744634667282,0.2703267,85084.0,85083.0,0.003]
[1744634667685,0.2703267,85084.0,85083.0,0.001]
[1744634668091,0.2713267,85084.0,85083.0,0.001]
[1744634668671,0.246845,85074.0,85071.0,0.246849]
[1744634668878,0.246844,85074.0,85071.0,0.246849]
[1744634669158,0.011754,85074.0,85071.0,0.246849]
[1744634669555,0.246843,85074.0,85071.0,0.246849]
[1744634669765,0.011754,85074.0,85072.0,0.235094]
[1744634669997,0.246843,85074.0,85072.0,0.235094]
[1744634670265,0.246844,85074.0,85071.0,0.249849]
[1744634670487,0.011754,85074.0,85072.0,0.235093]
[1744634670719,0.246843,85074.0,85071.0,0.248849]
[1744634671048,0.246836,85077.0,85073.0,0.011754]
[1744634671183,0.246836,85077.0,85073.0,0.246846]
[1744634671643,0.235085,85076.0,85073.0,0.246846]
[1744634672245,0.01179985,85084.0,85083.0,0.235064]
[1744634672605,0.011753,85078.0,85074.0,0.13259554]
[1744634672847,0.24683,85079.0,85077.0,0.235081]
[1744634673050,0.246828,85079.0,85078.0,0.12084154]
[1744634673589,0.246828,85079.0,85076.0,0.235081]
[1744634673933,0.246828,85079.0,85076.0,0.246835]
[1744634674295,0.246829,85079.0,85075.0,0.246839]
[1744634674497,0.235072,85080.0,85077.0,0.011754]
[1744634674703,0.235076,85079.0,85077.0,0.011754]
[1744634674819,0.246825,85080.0,85077.0,0.246834]
[1744634675021,0.235076,85079.0,85076.0,0.235081]
[1744634675428,0.235076,85079.0,85076.0,0.246835]
[1744634676926,0.246825,85080.0,85077.0,0.23508]
[1744634677277,0.011754,85074.0,85071.0,0.246849]
[1744634677605,0.235084,85076.0,85071.0,0.246849]
[1744634677606,0.246838,85076.0,85072.0,0.13259554]
[1744634677814,0.011754,85075.0,85072.0,0.13259554]
[1744634678015,0.011754,85075.0,85065.0,0.011755]
[1744634678016,0.011755,85069.0,85059.0,0.382526]
[1744634678220,0.011755,85065.0,85060.0,0.13259754]
[1744634678427,0.011755,85064.0,85060.0,0.13259754]
[1744634678626,0.23512,85063.0,85060.0,0.13259754]
[1744634678849,0.011755,85064.0,85061.0,0.011756]
[1744634679084,0.011755,85065.0,85062.0,0.36771954]
[1744634679896,0.246871,85065.0,85062.0,0.13259754]
[1744634680099,0.246866,85066.0,85063.0,0.235118]
[1744634680433,0.246866,85066.0,85064.0,0.235117]
[1744634681618,0.246866,85066.0,85064.0,0.238117]
[1744634682273,0.011755,85066.0,85064.0,0.238117]
[1744634682484,0.011755,85066.0,85064.0,0.241117]
[1744634683385,0.235109,85067.0,85064.0,0.241117]
[1744634683555,0.235109,85067.0,85064.0,0.252872]
[1744634683757,0.246859,85069.0,85066.0,0.235109]
[1744634683966,0.011754,85072.0,85069.0,0.011755]
[1744634684164,0.235082,85077.0,85069.0,0.13259654]
[1744634684343,0.01095196,85075.0,85071.0,0.011754]
[1744634684534,0.24603896,85075.0,85072.0,0.246846]
[1744634685538,0.235091,85074.0,85071.0,0.011754]
[1744634685712,0.4165,85082.0,85080.0,0.235071]
[1744634685924,0.13564,85088.0,85077.0,0.246835]
[1744634685925,0.351753,85081.0,85077.0,0.246835]
[1744634686070,0.246825,85081.0,85077.0,0.246835]
[1744634686413,0.34,85079.0,85078.0,0.235076]
[1744634686813,0.34,85079.0,85077.0,0.246835]
[1744634687036,0.34,85079.0,85078.0,0.235078]
[1744634687251,0.147392,85088.0,85078.0,0.235078]
[1744634687252,8e-07,85084.0,85083.0,0.235064]
[1744634687401,8e-07,85084.0,85083.0,0.35590554]
[1744634687602,8e-07,85084.0,85083.0,0.40170554]
[1744634687806,8e-07,85084.0,85083.0,0.44810554]
[1744634689180,8e-07,85084.0,85083.0,0.45210554]
[1744634689387,0.0010008,85084.0,85083.0,0.45210554]
[1744634689588,0.0010008,85084.0,85083.0,0.44810554]
[1744634689898,8e-07,85084.0,85083.0,0.45810554]
[1744634690343,8e-07,85084.0,85083.0,0.46410554]
[1744634698477,8e-07,85084.0,85083.0,0.59970554]
[1744634698920,8e-07,85084.0,85083.0,0.46410554]
[1744634699118,8e-07,85084.0,85083.0,0.59970554]
[1744634699318,8e-07,85084.0,85083.0,0.59370554]
[1744634699519,8e-07,85084.0,85083.0,0.45810554]
[1744634699749,8e-07,85084.0,85083.0,0.58870554]
[1744634699895,8e-07,85084.0,85083.0,0.59670554]
[1744634700500,8e-07,85084.0,85083.0,0.46110554]
[1744634701230,8e-07,85084.0,85083.0,0.59670554]
[1744634710305,8e-07,85084.0,85083.0,0.59170554]
[1744634710989,8e-07,85084.0,85083.0,0.36390554]
[1744634711267,8e-07,85084.0,85083.0,0.49918554]
[1744634712094,8e-07,85084.0,85083.0,0.49418554]
[1744634712237,8e-07,85084.0,85083.0,0.48918554]
[1744634712614,8e-07,85084.0,85083.0,0.49318554]
[1744634715104,8e-07,85084.0,85083.0,0.35790554]
[1744634715266,8e-07,85084.0,85083.0,0.49318554]
[1744634715672,8e-07,85084.0,85083.0,0.54188554]
[1744634716465,8e-07,85084.0,85083.0,0.49318554]
[1744634716654,8e-07,85084.0,85083.0,0.35790554]
[1744634716857,8e-07,85084.0,85083.0,0.49318554]
[1744634717057,8e-07,85084.0,85083.0,0.35790554]
[1744634717199,8e-07,85084.0,85083.0,0.49318554]
[1744634717400,8e-07,85084.0,85083.0,0.35790554]
[1744634717603,8e-07,85084.0,85083.0,0.49318554]
[1744634718330,8e-07,85084.0,85083.0,0.54288554]
[1744634718747,8e-07,85084.0,85083.0,0.53588554]
[1744634719264,8e-07,85084.0,85083.0,0.54788554]
[1744634719561,8e-07,85084.0,85083.0,0.53588554]
[1744634719762,8e-07,85084.0,85083.0,0.54388554]
[1744634720867,8e-07,85084.0,85083.0,0.54888554]
[1744634727087,0.00034815,85096.0,85095.0,0.235031]
[1744634727333,0.00034815,85096.0,85095.0,0.35587254]
[1744634728339,0.00034815,85096.0,85095.0,0.35887254]
[1744634728668,0.00034815,85096.0,85095.0,0.49815254]
[1744634729079,0.00034815,85096.0,85095.0,0.49786954]
[1744634737545,0.00034815,85096.0,85095.0,0.49718954]
[1744634737748,0.00034815,85096.0,85095.0,0.36258954]
[1744634737956,0.00034815,85096.0,85095.0,0.49718954]
[1744634746883,0.00034815,85096.0,85095.0,0.41098954]
[1744634747051,0.00034815,85096.0,85095.0,0.54558954]
[1744634750978,0.00034815,85096.0,85095.0,0.55731069]
[1744634753012,0.00034815,85096.0,85095.0,0.55331069]
[1744634753255,0.00034815,85096.0,85095.0,0.55831069]
[1744634753951,0.00034815,85096.0,85095.0,0.55531069]
[1744634754152,0.00034815,85096.0,85095.0,0.55931069]
[1744634764810,0.00034815,85096.0,85095.0,0.55531069]
[1744634765256,0.00034815,85096.0,85095.0,0.55931069]
[1744634766085,0.00034815,85096.0,85095.0,0.55431069]
[1744634766505,1.5e-07,85096.0,85095.0,0.94841069]
[1744634767215,1.5e-07,85096.0,85095.0,1.36711069]
[1744634767423,1.5e-07,85096.0,85095.0,1.36311069]
[1744634767626,1.5e-07,85096.0,85095.0,1.35711069]
[1744634767796,1.5e-07,85096.0,85095.0,1.36211069]
[1744634767995,1.5e-07,85096.0,85095.0,1.37011069]
[1744634768244,1.5e-07,85096.0,85095.0,1.36511069]
[1744634769279,5.5e-07,85104.0,85103.0,0.235009]
[1744634769405,5.5e-07,85104.0,85103.0,0.45179986]
[1744634769633,5.5e-07,85104.0,85103.0,0.44945054]
[1744634769844,0.0001,85114.0,85106.0,0.235001]
[1744634769845,2.5e-07,85114.0,85106.0,0.235001]
[1744634770044,2.5e-07,85114.0,85113.0,0.45292254]
[1744634770249,2.5e-07,85114.0,85113.0,1.00570254]
[1744634770887,2.5e-07,85114.0,85113.0,1.34570254]
[1744634771278,2.5e-07,85114.0,85113.0,1.35570254]
[1744634771523,2.5e-07,85114.0,85113.0,1.36456036]
[1744634771868,6.5e-07,85121.0,85118.0,0.351748]
[1744634772051,6.5e-07,85121.0,85120.0,0.79240354]
[1744634772256,6.5e-07,85121.0,85120.0,1.89152354]
[1744634772819,0.002,85129.0,85120.0,1.89152354]
[1744634772820,6.5e-07,85129.0,85128.0,0.23494]
[1744634773135,6.5e-07,85129.0,85128.0,0.54001026]
[1744634773290,6.5e-07,85129.0,85128.0,0.53766154]
[1744634773857,6.5e-07,85129.0,85128.0,0.54366154]
[1744634774057,6.5e-07,85129.0,85128.0,0.555212]
[1744634774483,6.5e-07,85129.0,85128.0,0.559212]
[1744634775289,6.5e-07,85129.0,85128.0,0.425132]
[1744634775505,6.5e-07,85129.0,85128.0,0.559172]
[1744634775901,6.5e-07,85129.0,85128.0,0.425132]
[1744634776327,6.5e-07,85129.0,85128.0,0.559172]
[1744634778671,6.5e-07,85129.0,85128.0,0.425132]
[1744634778842,6.5e-07,85129.0,85128.0,0.559172]
[1744634779591,6.5e-07,85129.0,85128.0,0.425132]
[1744634779801,6.5e-07,85129.0,85128.0,0.559172]
[1744634782568,2.5e-07,85131.0,85130.0,0.234934]
[1744634782770,2.5e-07,85131.0,85130.0,0.35812418]
[1744634783068,2.5e-07,85131.0,85130.0,0.35577554]
[1744634783645,2.5e-07,85131.0,85130.0,0.36077554]
[1744634783833,2.5e-07,85131.0,85130.0,0.40617554]
[1744634784234,2.5e-07,85131.0,85130.0,0.40117554]
[1744634784435,2.5e-07,85131.0,85130.0,0.40617554]
[1744634785858,2.5e-07,85131.0,85130.0,0.40117554]
[1744634786130,2.5e-07,85131.0,85130.0,0.41517554]
[1744634786339,2.5e-07,85131.0,85130.0,0.40717554]
[1744634786496,2.5e-07,85131.0,85130.0,0.41617554]
[1744634791487,0.294905,85157.0,85154.0,0.234866]
[1744634791488,0.29486811,85157.0,85154.0,0.234866]
[1744634791710,0.011743,85153.0,85149.0,0.13404]
[1744634791914,0.246608,85155.0,85150.0,0.36746354]
[1744634792099,0.011743,85153.0,85150.0,0.35572054]
[1744634792523,0.246615,85153.0,85151.0,0.234876]
[1744634792815,0.246615,85153.0,85152.0,0.12084154]
[1744634793967,0.234874,85152.0,85150.0,0.002]
[1744634794173,0.246615,85153.0,85152.0,0.003]
[1744634794872,0.292115,85153.0,85152.0,0.003]
[1744634795042,0.58941685,85151.0,85150.0,0.002]
[1744634795199,0.58943085,85146.0,85145.0,0.0183393]
[1744634795401,0.58943085,85146.0,85124.0,0.23495]
[1744634795402,0.0019,85126.0,85124.0,0.23495]
[1744634795632,0.0019,85126.0,85125.0,0.234948]
[1744634795843,0.0391,85127.0,85126.0,0.234945]
[1744634796059,0.0019,85131.0,85126.0,0.35578654]
[1744634796215,0.34,85142.0,85135.0,0.234921]
[1744634796216,0.0391,85136.0,85135.0,0.234921]
[1744634797107,0.34,85139.0,85138.0,0.234912]
[1744634797333,0.246648,85142.0,85139.0,0.234908]
[1744634797512,0.011745,85142.0,85139.0,0.12084154]
[1744634797760,0.34,85140.0,85139.0,0.12084154]
[1744634799068,0.34,85140.0,85139.0,0.35575054]
[1744634799274,0.234891,85146.0,85139.0,0.35575054]
[1744634799275,0.0494,85149.0,85146.0,0.011744]
[1744634799481,0.0494,85149.0,85147.0,0.12084154]
[1744634799632,0.0494,85149.0,85140.0,0.011745]
[1744634799633,0.234898,85144.0,85140.0,0.011745]
[1744634799867,0.011744,85144.0,85142.0,0.234901]
[1744634800071,0.011744,85144.0,85142.0,0.35574254]
[1744634800414,0.011744,85147.0,85143.0,0.234898]
[1744634800710,0.246629,85148.0,85145.0,0.234893]
[1744634800892,0.246632,85147.0,85143.0,0.24664]
[1744634801088,0.246632,85147.0,85144.0,0.234894]
[1744634801300,0.246632,85147.0,85143.0,0.24664]
[1744634802532,0.234893,85145.0,85142.0,0.12284154]
[1744634802678,0.011744,85145.0,85142.0,0.35674254]
[1744634802884,0.246634,85146.0,85143.0,0.234896]
[1744634803101,0.234896,85144.0,85143.0,0.002]
[1744634803430,0.574896,85144.0,85143.0,0.002]
[1744634803632,0.574896,85144.0,85143.0,0.001]
[1744634803847,0.011746,85131.0,85128.0,0.25327668]
[1744634804188,0.246669,85134.0,85129.0,0.12084154]
[1744634804345,0.061346,85135.0,85129.0,0.12084154]
[1744634804346,0.0496,85135.0,85134.0,0.234923]
[1744634804506,0.284521,85135.0,85134.0,0.12084154]
[1744634805387,0.284521,85135.0,85129.0,0.011746]
[1744634805388,0.011746,85133.0,85129.0,0.246683]
[1744634805533,0.246675,85133.0,85131.0,0.234931]
[1744634805737,0.0496,85135.0,85131.0,0.23493]
[1744634805934,0.0497,85135.0,85133.0,0.234926]
[1744634806169,0.0497,85135.0,85134.0,0.234923]
[1744634806910,0.0497,85135.0,85134.0,0.236923]
[1744634807110,0.0001,85135.0,85134.0,0.35776454]
[1744634807488,0.0001,85135.0,85134.0,0.36076454]
[1744634812109,0.0001,85135.0,85134.0,0.40876454]
[1744634813367,0.0001,85135.0,85134.0,0.40676454]
[1744634813566,0.0001,85135.0,85134.0,0.40876454]
[1744634813724,0.0001,85135.0,85134.0,0.40576454]
[1744634813924,0.0001,85135.0,85134.0,0.40876454]
[1744634814362,0.0001,85135.0,85134.0,0.40676454]
[1744634814681,0.0001,85135.0,85134.0,0.41076454]
[1744634816193,0.0001,85135.0,85134.0,0.40776454]
[1744634816390,0.0001,85135.0,85134.0,0.41651338]
[1744634816591,0.0001,85135.0,85134.0,0.42151338]
[1744634819422,0.002,85159.0,85158.0,0.234857]
[1744634819622,0.002,85159.0,85158.0,0.35569854]
[1744634821217,0.011743,85157.0,85153.0,0.234869]
[1744634821413,0.002,85159.0,85153.0,0.234869]
[1744634821414,0.013742,85159.0,85154.0,0.12084154]
[1744634821618,0.248599,85159.0,85155.0,0.234863]
[1744634821824,0.013742,85159.0,85155.0,0.36744754]
[1744634822142,0.002,85159.0,85158.0,0.234857]
[1744634822347,0.013742,85159.0,85155.0,0.13258454]
[1744634822569,0.234863,85156.0,85151.0,0.234876]
[1744634822787,0.011743,85156.0,85154.0,0.234868]
[1744634822962,0.011743,85154.0,85149.0,0.011744]
[1744634823205,0.246612,85154.0,85150.0,0.36746354]
[1744634823689,0.234872,85153.0,85150.0,0.36746354]
[1744634823889,0.246612,85154.0,85151.0,0.001]
[1744634824114,0.234879,85150.0,85144.0,0.25323167]
[1744634824316,0.246626,85149.0,85145.0,0.36747554]
[1744634824738,0.23489,85146.0,85145.0,0.12084154]
[1744634824908,0.246627,85149.0,85146.0,0.234888]
[1744634825131,0.246627,85149.0,85146.0,0.35572954]
[1744634825924,0.246627,85149.0,85146.0,0.36747354]
[1744634826303,0.246627,85149.0,85147.0,0.234887]
[1744634827043,0.246614,85154.0,85151.0,0.234874]
[1744634827193,0.011743,85152.0,85147.0,0.011744]
[1744634827403,0.011743,85150.0,85147.0,0.011744]
[1744634827737,0.246622,85150.0,85147.0,0.250631]
[1744634827883,0.246622,85150.0,85147.0,0.248631]
[1744634828284,0.234885,85149.0,85147.0,0.002]
[1744634828921,0.234885,85149.0,85146.0,0.35573154]
[1744634829123,0.234885,85149.0,85147.0,0.002]
[1744634829330,0.234885,85149.0,85147.0,0.236887]
[1744634829526,0.246623,85150.0,85147.0,0.236887]
[1744634829729,0.246623,85150.0,85148.0,0.234883]
[1744634829906,0.246623,85150.0,85147.0,0.250631]
[1744634830146,0.246623,85150.0,85147.0,0.248631]
[1744634830347,0.234884,85149.0,85147.0,0.002]
[1744634830590,0.234884,85149.0,85137.0,0.234912]
[1744634830591,0.234897,85144.0,85140.0,0.145945]
[1744634830797,0.234893,85146.0,85141.0,0.13258654]
[1744634831545,0.234888,85147.0,85144.0,0.234895]
[1744634831743,0.234891,85146.0,85143.0,0.011744]
[1744634831966,0.234893,85145.0,85143.0,0.12084154]
[1744634832170,0.011744,85147.0,85144.0,0.234894]
[1744634832364,0.246634,85147.0,85144.0,0.234894]
[1744634833596,0.246634,85147.0,85144.0,0.246638]
[1744634833818,0.246634,85147.0,85144.0,0.247638]
[1744634834033,0.011744,85147.0,85144.0,0.247638]
[1744634834243,0.4165,85169.0,85158.0,0.234857]
[1744634834452,0.0487,85180.0,85158.0,0.234857]
[1744634834453,0.34,85177.0,85158.0,0.35569854]
[1744634834783,0.01174,85176.0,85158.0,0.35569854]
[1744634835188,0.01274,85174.0,85158.0,0.35569854]
[1744634835609,0.34,85173.0,85158.0,0.35569854]
[1744634836010,0.35174,85173.0,85158.0,0.35569854]
[1744634836215,0.247556,85174.0,85158.0,0.35669854]
[1744634836444,0.35174,85172.0,85158.0,0.35669854]
[1744634836621,0.246559,85172.0,85158.0,0.35669854]
[1744634836820,0.011741,85168.0,85158.0,0.35769854]
[1744634837025,0.34,85169.0,85158.0,0.236857]
[1744634838225,0.34,85173.0,85158.0,0.35769854]
[1744634838425,0.011741,85171.0,85158.0,0.35769854]